{"text_format":"2","workbook":"xlsx","n_sheets":27,"sheets":["Portada","Balance de Comprobación","Cambios Act. Netos Disponibles","Act. Netos Dispon. Beneficios","Nota 1","Nota 2","Nota 3","Nota 4","Nota 5","Nota 6","Nota 7","Nota 8","Nota 9","Nota 10","Nota 11","Nota 12","Nota 13","Nota 14","Nota 15","Nota 16","Nota 17","Nota 18","Nota 19","Nota 20","Nota 21","Nota 22","Nota 23"],"not_rendered":{"charts":0,"images":2,"macros":0,"external_links":0,"defined_names":29,"comments":0,"pivot_tables":0},"unopened":[],"bounds":{"document_bytes":16777216,"sheet_cells":100000,"run_cost":"one","rows_first":2000,"rows_last":500,"rows_between":2000,"halvings":0,"cell_chars":16384,"cell_head_chars":4096},"cells_cut":0,"cells_raw":0,"read":"whole","date_system":"1900"}

{"sheet":"Portada","index":0,"n_rows":0,"n_cols":0,"rows_kept":0,"cut":false,"hidden":false,"merged":[]}

{"sheet":"Balance de Comprobación","index":1,"n_rows":72,"n_cols":8,"rows_kept":72,"cut":false,"hidden":false,"merged":[[63,3,63,5],[48,2,48,3],[1,2,1,7],[3,2,3,7],[5,2,5,7],[61,3,62,5]]}
[]
[null,null,"Fondo de Jubilaciones y Pensiones del Poder Judicial"]
[]
[null,null,"Balance de Comprobación"]
[]
[null,null,"Al 30 de Noviembre 2018"]
[null," "]
[]
[null,null,"ACTIVO"]
[null,null,"Cuentas Corrientes Y De Ahorro ",null,null,2780148934.7199998]
[null,null,"Inversiones En Valores De Emisores Nacionales",null,null,517845766171.21997]
[null,null,"Cuentas Por Cobrar",null,null,218050077.43000001]
[null,null,"Productos Por Cobrar Sobre Inversiones",null,null,7913858609.4200001]
[null,null,"Préstamos a Afiliados",null,null,4758536.2]
[null,null,"Aportes Por Cobrar A Los Trabajadores",null,null,6257541505.4499998]
[null,null,"Aportes Por Cobrar Al Patrono",null,null,4324422042.3288002]
[null,null,"Aportes Por Cobrar Al Estado",null,null,305485817.02999997]
[null,null,"Otros Aportes Por Cobrar",null,null,254375196.41999999]
[null,null,"Mobiliario Y Equipo"]
[null,null,"Equipo De Cómputo"]
[null,null,"(Depreciación Acumulada)"]
[null,null,"Costo de Programas Informáticos-Software",null,null,7618670]
[null,null,"(Amortización Programas Informáticos)",null,null,-7618670]
[null,null,"GASTOS"]
[null,null,"Pérdidas por Negociación de Instrumentos Financieros"]
[null,null,"Pérdidas Por Fluctuación Cambiaria",null,null,4455389362.3599997]
[null,null,"Pérdidas por Variaciones en la Unidad de Referencia",null,null,11267936.529999999]
[null,null,"Gastos Generales",null,null,513570296.37]
[null,null,"PASIVO"]
[null,null,"Retenciones A Pensionados",{"$nulls":4},722173048.63999999]
[null,null,"Obligaciones Por Liquidar Empleados",{"$nulls":4},568605.77]
[null,null,"Obligaciones Transitorias por Liquidar",{"$nulls":4},866233244.87]
[null,null,"Retención Por Servicios Recibidos"]
[null,null,"Cotización Seguro De Enfermedad Y Maternidad",{"$nulls":4},513509114.70999998]
[null,null,"Provisión Para Pensiones En Curso De Pago ",{"$nulls":4},536382347264.29999]
[null,null,"PATRIMONIO"]
[null,null,"Aportaciones recibidas ",{"$nulls":4},446292900.52999997]
[null,null,"INGRESOS"]
[null,null,"Productos Sobre Inversiones De Emisores Nacionales",{"$nulls":4},3102690944.6900001]
[null,null,"Intereses Sobre Saldos En Cuentas Bancarias",{"$nulls":4},15057652.51]
[null,null,"Por Negociación de Instrumentos Financieros"]
[null,null,"Ganancias por Fluctuación Cambiaria",{"$nulls":4},2506362588.0599999]
[null,null,"Ganancias por Variaciones en la Unidad de Referencia",{"$nulls":4},326135296.98000002]
[null,null,"Ingresos sobre Préstamos de Afiliados",{"$nulls":4},30712.959999999999]
[null,null,"Otros Ingresos",{"$nulls":4},3233111.46]
[]
[]
[]
[null,null,"Sumas Iguales",null,null,{"$f":"SUM(F10:F28)","v":544884634485.47876},null,{"$f":"SUM(H30:H45)","v":544884634485.48004}]
[]
[]
[]
[]
[]
[null,null,"         Lic. Luis Guillermo Vásquez Ureña ",null,null,"      MBA. María Antonieta Herrera Charraun"]
[null,null,"           Jefe Subproceso Contable ",null,null," Jefa Proceso Presupuestario Contable "]
[]
[]
[]
[]
[]
[null,null,null,"MBA Miguel Ovares Chavarria "]
[]
[null,null,null,"Jefe a.i. Macroproceso Financiero Contable"]
[]
[]
[]
[null,null,"Realizado por:"]
[null,null,"Licda. Yesenia Flores Chacon"]
[null,null,"Coordinadora de Unidad I a.i. , Subproceso Contabilidad "]
[]
[null,null,"Observación: Enlace al Manual de Políticas Contables."]

{"sheet":"Cambios Act. Netos Disponibles","index":2,"n_rows":80,"n_cols":9,"rows_kept":80,"cut":false,"hidden":false,"merged":[[67,2,68,4],[69,2,69,4]]}
[null,"Fondo de Jubilaciones y Pensiones"]
[null,"Estado de Cambios en los Activos Netos Disponibles"]
[null,"Por el mes terminado al 30/11/2018"]
[null,"(En colones sin céntimos)"]
[]
[]
[null,null,null,"SALDO MENSUAL",null,null,"SALDO ACUMULADO"]
[null,null,"NOTAS "]
[null,"SALDO INICIAL",null,null,7026411493.8299942,"(1)",null,2908712973,"(2)"]
[]
[null,"INGRESOS",null,null,{"$f":"D13+D21","v":5953510306.6599998},null,null,{"$f":"G13+G21","v":47134561630.360008}]
[]
[null,"INGRESOS FINANCIEROS",null,{"$f":"SUM(D14:D19)","v":5950277195.1999998},null,null,{"$f":"SUM(G14:G19)","v":47064457109.850006}]
[null,"Productos sobre Inversiones de Emisores Nacionales","Nota 1",{"$f":"+'Nota 1'!H24","v":3102690944.6900001},null,null,{"$f":"+'Nota 1'!H37","v":32715418759.610001}]
[null,"Intereses sobre Saldos en Cuentas Corrientes","Nota 2",{"$f":"+'Nota 2'!G21","v":15057652.51},null,null,{"$f":"+'Nota 2'!G36","v":128443862.84}]
[null,"Por negociación de instrumentos financieros",{"$nulls":4},0]
[null,"Ganancias por Fluctuación Cambiaria","Nota 3",{"$f":"+'Nota 3'!D17","v":2506362588.0599999},null,null,{"$f":"+'Nota 3'!F17","v":12124667030.18}]
[null,"Ganancias por Variaciones en la Unidad de Referencia","Nota 4",{"$f":"+'Nota 4'!D15","v":326135296.98000002},null,null,{"$f":"+'Nota 4'!F15","v":2093907642.6500001}]
[null,"Ingresos sobre Préstamos a Afiliados y Pensionados ","Nota 5",{"$f":"+'Nota 5'!J13","v":30712.959999999999},null,null,{"$f":"+'Nota 5'!L13","v":2019814.57}]
[]
[null,"OTROS INGRESOS",null,3233111.46,null,null,{"$f":"58841872.05+3721255.14+2787473.86+1520808+3233111.46","v":70104520.50999999}]
[]
[null,"PLAN DE CONTRIBUCIONES","Nota 6",null,{"$f":"SUM(D26:D29)","v":7511676244.250001},null,null,{"$f":"SUM(G26:G29)","v":76328961954.490005}]
[]
[null,"RESERVAS EN FORMACION"]
[null,"De los trabajadores",null,{"$f":"+'Nota 6'!F15","v":3196440713.5},null,null,{"$f":"+'Nota 6'!H15","v":30885176292.18}]
[null,"Del Patrono",null,{"$f":"+'Nota 6'!F16","v":3343832652.2800002},null,null,{"$f":"+'Nota 6'!H16","v":35865063826.139999}]
[null,"Del Estado",null,{"$f":"+'Nota 6'!F17","v":135275272.28999999},null,null,{"$f":"+'Nota 6'!H17","v":1461962592.3599999}]
[null,"De los Pensionados",null,{"$f":"+'Nota 6'!F18+'Nota 6'!F19","v":836127606.17999995},null,null,{"$f":"+'Nota 6'!H18+'Nota 6'!H19","v":8116759243.8099995}]
[null,"Rendimientos Acumulados",null,0]
[]
[null,"UTILIDAD ( PERDIDA DEL EJERCICIO )",null,0]
[]
[null,"TOTAL ADICIONES",null,null,{"$f":"E11+E23","v":13465186550.91},null,null,{"$f":"H11+H23","v":123463523584.85001}]
[]
[null,"SALIDA DE RECURSOS",null,null,{"$f":"D37","v":14091794837.700001},null,null,{"$f":"G37","v":110452561703.41}]
[null,"Por Nuevos Pensionados","Nota 7",{"$f":"+'Nota 7'!D16","v":14091794837.700001},null,null,{"$f":"+'Nota 7'!F16","v":110452561703.41}]
[]
[null,"GASTOS",null,null,{"$f":"D41+D46","v":4980227595.2600002},null,null,{"$f":"G41+G46","v":14500099242.84}]
[]
[null,"GASTOS FINANCIEROS",null,{"$f":"D43+D44","v":4466657298.8900003},null,null,{"$f":"SUM(G43:G44)","v":8978787191.9799995}]
[null,"Pérdida por Negociación de Inst. Financ.",null,0,null,null,0]
[null,"Pérdida por Fluctuación Cambiaria","Nota 8",{"$f":"+'Nota 8'!D16","v":4455389362.3600006},null,null,{"$f":"+'Nota 8'!F16","v":8617413964.0699997}]
[null,"Pérdida por Variaciones en la Unidad de Referencia","Nota 9",{"$f":"+'Nota 9'!D15","v":11267936.529999999},null,null,{"$f":"+'Nota 9'!F15","v":361373227.91000003}]
[]
[null,"GASTOS GENERALES","Nota 10",{"$f":"+'Nota 10'!D16","v":513570296.37},null,null,{"$f":"+'Nota 10'!F16","v":5521312050.8599997}]
[]
[null,"TOTAL DE DEDUCCIONES",null,null,{"$f":"E36+E39","v":19072022432.959999},null,null,{"$f":"H36+H39","v":124952660946.25}]
[]
[null,"ACTIVOS NETOS DISPONIBLES PARA BENEFICIOS"]
[null,"FUTUROS AL FINAL DEL PERIODO (3)",null,null,{"$f":"E9+E34-E48","v":1419575611.779995},null,null,{"$f":"H9+H34-H48","v":1419575611.6000061}]
[]
[]
[null,"Observaciones: "]
[null,"(1) Saldo inicial mensual: Corresponde al total de activos disponibles para beneficios futuros al final del mes de octubre 2018."]
[null,"(2) Saldo acumulado: Pertenece al total de activos disponibles de beneficios futuros al final del año anterior (Diciembre 2017)."]
[null,"(3) Activos Netos Disponibles para Beneficios Futuros al Final del Periodo: Corresponde a la suma del saldo inicial mas el total de adiciones, menos el total de deducciones."]
[]
[]
[]
[null,"         Lic. Luis Guillermo Vásquez Ureña ",null,null,"      MBA. María Antonieta Herrera Charraun"]
[null,"           Jefe Subproceso Contable ",null,null," Jefa Proceso Presupuestario Contable "]
[]
[]
[]
[]
[]
[null,null,"MBA Miguel Ovares Chavarria "]
[]
[null,null,"Jefe a.i. Macroproceso Financiero Contable"]
[]
[]
[]
[]
[null,"Realizado por:"]
[null,"Licda. Yesenia Flores Chacon"]
[null,"Coordinadora de Unidad I a.i. , Subproceso Contabilidad "]
[]
[]
[null,"Observación: Enlace al Manual de Políticas Contables."]

{"sheet":"Act. Netos Dispon. Beneficios","index":3,"n_rows":76,"n_cols":5,"rows_kept":76,"cut":false,"hidden":false,"merged":[[65,1,65,3],[66,1,66,3]]}
[]
[null,"Fondo de Jubilaciones y Pensiones del Poder Judicial"]
[null,"Estado de Activos Netos Disponibles para Beneficios"]
[null,"AL 30/11/2018"]
[null,"(En colones sin céntimos)"]
[null,null,"NOTAS"]
[null,"DISPONIBILIDADES",null,null,{"$f":"D8","v":2780148934.7200003}]
[null,"Cuentas Corrientes y de Ahorro","Nota 11",{"$f":"+'Nota 11'!D23","v":2780148934.7200003}]
[]
[null,"INVERSIONES EN VALORES ",null,null,{"$f":"D12","v":517845766171.22003}]
[null,"EN CURSO DE PAGO"]
[null,"Inversiones en Valores de Emisores Nacionales ","Nota 12",{"$f":"+'Nota 12'!D28","v":517845766171.22003}]
[]
[null,"CUENTAS Y PRODUCTOS POR COBRAR SOBRE INVERSIONES",null,null,{"$f":"SUM(D16:D17)","v":8131908686.8500004}]
[null,"PROVISION PARA PENSIONES EN CURSO DE PAGO"]
[null,"Cuentas Por Cobrar","Nota 13",{"$f":"+'Nota 13'!D16","v":218050077.43000001}]
[null,"Productos Por Cobrar Sobre Inversiones De Emisores Nacionales ","Nota 14",{"$f":"+'Nota 14'!D24","v":7913858609.4200001}]
[]
[null,"PRESTAMOS A AFILIADOS Y PENSIONADOS",null,null,{"$f":"D20","v":4758536.1999995708}]
[null,"Préstamos por Cobrar","Nota 15",{"$f":"+'Nota 15'!D24","v":4758536.1999995708}]
[null,"Productos por Cobrar sobre Préstamos","Nota 15",0]
[]
[null,"APORTES POR COBRAR",null,null,{"$f":"SUM(D24:D27)","v":11141824561.228802}]
[null,"Aportes Por Cobrar A Los Trabajadores","Nota 16",{"$f":"+'Nota 16'!J12","v":6257541505.4499998}]
[null,"Aportes Por Cobrar Al Patrono","Nota 16",{"$f":"+'Nota 16'!J16","v":4324422042.3288002}]
[null,"Aportes Por Cobrar Al Estado","Nota 16",{"$f":"+'Nota 16'!J19","v":305485817.03000003}]
[null,"Otros Aportes Por Cobrar","Nota 16",{"$f":"+'Nota 16'!J22","v":254375196.42000002}]
[]
[null,"PROPIEDAD, PLANTA Y EQUIPO",null,null,0]
[null,"Mobiliario y Equipo",null,0]
[null,"Equipo de Cómputo",null,0]
[null,"(Depreciación Acumulada)",null,0]
[]
[null,"OTROS ACTIVOS",null,null,0]
[null,"Intangibles","Nota 17",0]
[]
[null,"ACTIVO TOTAL",null,null,{"$f":"E7+E10+E14+E19+E23","v":539904406890.21881}]
[]
[null,"CUENTAS POR PAGAR",null,null,{"$f":"SUM(D40:D42)","v":1588974899.2800002}]
[null,"Retenciones A Pensionados","Nota 18",{"$f":"+'Nota 18'!E18","v":722173048.6400001}]
[null,"Obligaciones Por Liquidar Empleados y Exempleados","Nota 19",{"$f":"+'Nota 19'!D19","v":568605.77}]
[null,"Obligaciones Transitorias por Liquidar","Nota 20",{"$f":"+'Nota 20'!D26","v":866233244.87000012}]
[]
[null,"PROVISIONES",null,null,{"$f":"D45","v":513509114.70999998}]
[null,"Cotización Seguro De Enfermedad y Maternidad","Nota 21",{"$f":"+'Nota 21'!F12","v":513509114.70999998}]
[]
[null,"PROVISIONES PARA PENSIONES EN CURSO DE PAGO","Nota 22",null,{"$f":"+'Nota 22'!J16","v":536382347264.29993}]
[]
[null,"PASIVO TOTAL",null,null,{"$f":"E47+E44+E39","v":538484831278.28998}]
[{"$nulls":4}," "]
[null,"ACTIVOS NETOS DISPONIBLES PARA BENEFICIOS FUTUROS (1)",null,null,{"$f":"+'Cambios Act. Netos Disponibles'!E51","v":1419575611.779995}]
[]
[null,"CUENTAS DE ORDEN","Nota 23",null,{"$f":"+'Nota 23'!D12","v":291806472.83999997}]
[]
[null,"Observaciones:"]
[null,"(1) Activos Netos Disponibles para Beneficios Futuros al Final del Periodo: Corresponde al total de activo menos el total de pasivo."]
[]
[]
[]
[null,"         Lic. Luis Guillermo Vásquez Ureña ","      MBA. María Antonieta Herrera Charraun"]
[null,"           Jefe Subproceso Contable "," Jefa Proceso Presupuestario Contable "]
[]
[]
[]
[]
[null,"             MBA Miguel Ovares Chavarria "]
[null,"                  Jefe a.i. Macroproceso Financiero Contable"]
[]
[]
[]
[]
[null,"Realizado por:"]
[null,"Licda. Yesenia Flores Chacon"]
[null,"Coordinadora de Unidad I a.i. , Subproceso Contabilidad "]
[]
[null,"Observación: Enlace al Manual de Políticas Contables."]

{"sheet":"Nota 1","index":4,"n_rows":37,"n_cols":8,"rows_kept":37,"cut":false,"hidden":false,"merged":[[2,1,3,7],[4,1,4,7],[40,1,40,7],[8,1,8,7]]}
[]
[null,"Nota 1:"]
[null,"Productos sobre Inversiones de Emisores Nacionales"]
[]
[null,"al 30 de Noviembre de 2018"]
[]
[]
[]
[null,"De acuerdo con lo establecido por la SUPEN, este rubro se encuentra conformado por los intereses devengados del mes producto de las inversiones en títulos valores, la amortización de los descuentos, las comisiones pagadas y primas en títulos valores."]
[]
[]
[]
[null,"MENSUAL "]
[]
[null,"PRODUCTOS SOBRE INVERSIONES DE VALORES NACIONALES",null,"COLONES",null,"DOLARES",null,"TOTAL"]
[]
[null,"Intereses devengados",null,2928815002.6500001,null,216835497.25,null,3145650499.9000001]
[null,"Amortización de descuento",null,5169246.42,null,4172057.0700000003,null,9341303.4900000002]
[null,"Comisión devengada",null,0,null,0,null,0]
[null,"Amortización de prima",null,-151363505.50999999,null,-1096814.07,null,-152460319.57999998]
[null,"Otros intereses devengados",null,0,null,0,null,0]
[null,"Ingresos por Dividendos",null,0,null,100159460.88,null,100159460.88]
[]
[null,"TOTAL DE PRODUC. SOBRE INVERS. DE VALORES NACIONALES.",null,{"$f":"SUM(D17:D22)","v":2782620743.5600004},null,{"$f":"SUM(F17:F23)","v":320070201.13},null,{"$f":"SUM(H17:H23)","v":3102690944.6900001}]
[]
[null,"ACUMULADO"]
[]
[null,"PRODUCTOS SOBRE INVERSIONES DE VALORES NACIONALES",null,"COLONES",null,"DOLARES",null,"TOTAL"]
[]
[null,"Intereses devengados",null,31000444629.379997,null,2150567171.6600003,null,{"$f":"D30+F30","v":33151011801.039997}]
[null,"Amortización de descuento",null,47739941.289999999,null,23271247.949999999,null,71011189.239999995]
[null,"Comisión devengada",null,-3691991.9299999997,null,-553425.46000000008,null,-4245417.3899999997]
[null,"Amortización de prima",null,-1613180711.7899997,null,-11619853.789999999,null,-1624800565.5799997]
[null,"Otros intereses devengados ",null,0,null,0,null,0]
[null,"Ingresos por Dividendos",null,0,null,1122441752.3,null,1122441752.3]
[]
[null,"TOTAL DE PRODUC. SOBRE INVERS. DE VALORES NACIONALES.",null,{"$f":"SUM(D30:D36)","v":29431311866.949997},null,{"$f":"SUM(F30:F36)","v":3284106892.6599998},null,{"$f":"SUM(H30:H36)","v":32715418759.610001}]

{"sheet":"Nota 2","index":5,"n_rows":51,"n_cols":12,"rows_kept":51,"cut":false,"hidden":false,"merged":[[2,2,3,6],[4,2,4,6],[6,2,6,6]]}
[]
[null,null,"Nota 2:"]
[null,null,"Intereses sobre Saldos en Cuentas Corrientes"]
[]
[null,null,{"$f":"+'Nota 1'!B5","v":"al 30 de Noviembre de 2018"}]
[]
[null,null,"Como resultado de los saldos que se mantienen en las cuentas corrientes del Banco Nacional de Costa Rica, Banco de Costa Rica y  Banco Popular, al cierre del presente mes los intereses sobre saldos en cuentas corrientes son los siguientes:"]
[]
[]
[null,null,"Mensual"]
[]
[null,null,"Cuenta Corriente ",null,"Banco",null,"Intereses Ganados en el Periodo"]
[]
[null,null,"1234-0",null,"Banco Nacional de Costa Rica ",null,1459.1]
[null,null,"229-32-9",null,"Banco de Costa Rica ",null,14897860.34]
[null,null,"18-1019277",null,"Banco Popular y de Desarrollo Comunal ",null,811.68]
[null,null,"174961-7",null,"Banco de Costa Rica ",null,0]
[null,null,"1914-1 $",null,"Banco Popular y de Desarrollo Comunal ",null,0]
[null,null,"112247-9 $",null,"Banco de Costa Rica ",null,157521.39000000001]
[]
[null,null,"Total",null,null,null,{"$f":"SUM(G14:G20)","v":15057652.51}]
[]
[]
[null,null,"Acumulado"]
[]
[null,null,"Cuenta Corriente ",null,"Banco",null,"Intereses Ganados en el Periodo"]
[]
[null,null,"1234-0",null,"Banco Nacional de Costa Rica ",null,7693.15]
[null,null,"229-32-9",null,"Banco de Costa Rica ",null,127337026.81]
[null,null,"18-1019277",null,"Banco Popular y de Desarrollo Comunal ",null,13682.89]
[null,null,"174961-7",null,"Banco de Costa Rica ",null,0.35]
[null,null,"1914-1 $",null,"Banco Popular y de Desarrollo Comunal "]
[null,null,"112247-9 $",null,"Banco de Costa Rica ",null,1085459.6399999999]
[]
[]
[null,null,"Total",null,null,null,{"$f":"SUM(G28:G35)","v":128443862.84}]
{"$rows_empty":14}
[{"$nulls":11},0]

{"sheet":"Nota 3","index":6,"n_rows":17,"n_cols":6,"rows_kept":17,"cut":false,"hidden":false,"merged":[[2,1,3,5],[4,1,4,5],[18,1,19,5],[7,1,7,5],[9,1,9,5]]}
[]
[null,"Nota 3:"]
[null,"Ganancias por Fluctuación Cambiaria"]
[]
[null,{"$f":"+'Nota 1'!$B$5:$H$5","v":"al 30 de Noviembre de 2018"}]
[]
[]
[null,"Se registra la ganancia generada en las partidas de los estados financieros cuando el tipo de cambio para la valuación de los activos en dólares, emitido por el Banco Central de Costa Rica, experimenta una tendencia al alza, provocando la ganancia en el valor de los rubros que componen estos estados financieros. "]
[]
[null,"Es importante señalar que el tipo de cambio utilizado para la valoración de las inversiones en dólares y cuentas relacionadas, así como de los movimientos de las cuentas bancarias en dólares es el tipo de cambio para el sector público no bancario, de conformidad con lo establecido en la Ley Orgánica del Banco Central de Costa Rica (BCCR) en su artículo 89."]
[]
[null,"Cuenta",null,"Mes",null,"Acumulado"]
[null,"Por Cuentas Corrientes",null,7566940.4699999997,null,31052353.579999998]
[null,"En Inversiones En Valores De Emisores Nacionales $",null,2477013230.5,null,11991913432.309999]
[null,"Por Cuentas Por Cobrar",null,24415.08,null,6577086.8399999999]
[null,"Por Productos Por Cobrar Sobre Inversion",null,21758002.010000002,null,95124157.450000003]
[null,"Ganancia Total Generada",null,{"$f":"SUM(D13:D16)","v":2506362588.0599999},null,{"$f":"SUM(F13:F16)","v":12124667030.18}]

{"sheet":"Nota 4","index":7,"n_rows":15,"n_cols":6,"rows_kept":15,"cut":false,"hidden":false,"merged":[[2,1,3,5],[4,1,4,5],[9,1,9,5],[7,1,7,5]]}
[]
[null,"Nota 4:"]
[null,"Ganancias por Variaciones en la Unidad de Referencia"]
[]
[null,{"$f":"+'Nota 1'!$B$5:$H$5","v":"al 30 de Noviembre de 2018"}]
[]
[]
[null,"Ganancias en virtud de la colocación de recursos a través de Títulos de Unidades de Desarrollo (TUDES) que ofrece el Ministerio de Hacienda a largo plazo."]
[]
[null,"Los Tudes, son títulos valores expresados en unidades de desarrollo, éstas unidades corresponden a un índice calculado por la Superintendencia General de Valores, con base a la variación registrada en el Índice de Precios al Consumidor del mes anterior. Al vencimiento de los cupones y del principal se cancelan en colones, por lo que la ganancia o la pérdida en los títulos valores va a depender del comportamiento de la inflación y por ende, de la variación en el valor de la unidad de desarrollo. Mensualmente se realiza el ajuste de las inversiones de acuerdo con el valor de la unidad de desarrollo al final del mes, a fin de que se actualice su valor, reflejando una pérdida o ganancia."]
[]
[]
[null,"Cuenta",null,"Mes",null,"Acumulado"]
[null,"En valores emitidos por el Gobierno",null,326135296.98000002,null,2093907642.6500001]
[null,"Ganancia Total Generada",null,{"$f":"SUM(D14:D14)","v":326135296.98000002},null,{"$f":"SUM(F14:F14)","v":2093907642.6500001}]

{"sheet":"Nota 5","index":8,"n_rows":14,"n_cols":12,"rows_kept":14,"cut":false,"hidden":false,"merged":[[2,1,3,11],[4,1,4,11],[7,1,7,11]]}
[]
[null,"Nota 5:"]
[null,"Ingresos sobre Préstamos a Afiliados y Pensionados "]
[]
[null,{"$f":"+'Nota 1'!$B$5:$H$5","v":"al 30 de Noviembre de 2018"}]
[]
[]
[null,"Constituye el interés devengado por el crédito otorgado a la Asociación Nacional de Empleados Judiciales (ANEJUD), según contrato suscrito en diciembre de 2008 por ¢1,000,000,000 (sin número de contrato), entre ANEJUD y el Consejo Superior del Poder Judicial, en su condición de administrador de este Fondo. "]
[]
[]
[null,"Total de Préstamo",null,"Entidad",null,"Plazo",null,"Tasa actual",null,"Ingreso Por Interes mensual",null,"Ingreso Por Interes Acumulado"]
[]
[null,1000000000,null,"ANEJUD",null,"10 años",null,8.0799999999999997E-2,null,30712.959999999999,null,2019814.57]
[{"$nulls":7}," "]

{"sheet":"Nota 6","index":9,"n_rows":46,"n_cols":14,"rows_kept":46,"cut":false,"hidden":false,"merged":[[32,15,34,21],[46,1,46,7],[29,1,29,7],[2,1,3,7],[4,1,4,7],[25,1,25,7],[31,1,31,7],[27,1,27,7],[8,1,8,7],[10,1,10,7]]}
[]
[null,"Nota 6:"]
[null,"PLAN DE CONTRIBUCIONES"]
[]
[null,{"$f":"++'Nota 1'!$B$5:$H$5","v":"al 30 de Noviembre de 2018"}]
[]
[]
[]
[null,"Comprende los aportes realizados  por el Poder Judicial en su calidad de Patrono y Estado, los cuales se aplican sobre los salarios devengados por los servidores judiciales."]
[]
[null,"Asimismo, está constituido por la contribución de los empleados, jubilados y pensionados judiciales, a los cuales en la actualidad se les deduce de su salario, jubilación y pensión. "]
[]
[null,"Aportes",null,"Porcentajes",null,"Mensual",null,"Acumulado"]
[]
[null,"Trabajadores",null,"11% y 13%",null,3196440713.5,null,30885176292.18]
[null,"Patrono",null,0.14360000000000001,null,3343832652.2800002,null,35865063826.139999]
[null,"Estado",null,5.7999999999999996E-3,null,135275272.28999999,null,1461962592.3599999]
[null,"Jubilados y Pensionados ",null,"11% y 13%",null,762917257.63,null,7670466343.2799997]
[null,"Contribución Solidaria",null,"-",null,73210348.549999997,null,446292900.52999997]
[]
[null,"Total Aportes",null,null,null,{"$f":"SUM(F15:F19)","v":7511676244.250001},null,{"$f":"SUM(H15:H19)","v":76328961954.490005}]
[]
[]
[null,"Notas:   ",{"$nulls":11}," "]
[]
[null,"1-)  Mediante Acuerdo del Consejo Superior N° 2-2018, art I, se autoriza a disminuir el porcentaje del aporte estatal, a partir del mes de enero 2018 pasando de 1.24% a 0.58%, lo anterior por cuanto el Ministerio de Hacienda recortó del Presupuesto del Poder Judicial la suma de ¢1,200,000,000 (Mil doscientos millones de colones)."]
[]
[null,"2-) Mediante Acuerdo del Consejo Superior, sesión N°26-2018 del 5/04/2018, en su punto tercer indica:\n\"[...] modificar el acuerdo tomado en sesión N°2-18 del 11/01/2018, art I, por lo que deberá la Dirección de Gestión Humana registrar como porcentaje del aporte estatal al Fondo de Jubilaciones y Pensiones el definido por la Caja Costarricense del Seguro Social (CCSS)\". Según lo definido en este acuerdo el porcentaje regresa al 1.24% establecido en Decreto Ejecutivo N° 39202-MTSS-H en su artículo 2, publicado en la Gaceta N° 170 del martes 01 de setiembre del 2015."]
[]
[null,"3-) Mediante la publicación de la Ley 9544, que reforma el Regimen de Jubilaciones y Pensiones del Poder Judicial y Acuerdo del Consejo Superior Sesión N°46-18 celebrada el 22/05/2018, art VI, se solicita realizar a partir de esta fecha el incremento al aporte obrero del 11% al 13%, así como el rebajo de la contribución especial, solidaria y redistributiva a las personas jubiladas y pensionadas, conforme el articulo 236 de esta Ley."]
[]
[null,"4-) La Dirección de Gestión Humana mediante oficios 006-CP-DGH-2018, 009-CP-DGH-2018, 011-CP-DGH-2018, 012-C-DGH-2018,  0017-CP-DGH-2018 , 0018-CP-DGH-2018, 0019-CP-DGH-2018, 0022-CP-DGH-2018, 0023-CP-DGH-2018 y 0025-CP-DGH-2018 remiten la información equivalente al 0.66% para los meses de Enero a Noviembre del año 2018, con el fin de revelar el detalle de la cuenta por cobrar por la diferencia porcentual hasta que se modifiquen los parametros a nivel de sistemas:"]
[]
[null,null,null,"Mes",null,"Monto"]
[null,null,null,"Enero",null,120402999.88]
[null,null,null,"Febrero",null,140520637.69]
[null,null,null,"Marzo",null,136148891.56]
[null,null,null,"Abril",null,135077110.63999999]
[null,null,null,"Mayo",null,137614704.16999999]
[null,null,null,"Junio",null,137617040.84999999]
[null,null,null,"Julio",null,137959636.90000001]
[null,null,null,"Agosto",null,139260367.99000001]
[null,null,null,"Setiembre",null,139779141.05000001]
[null,null,null,"Octubre",null,{"$f":"139004094.93+52384.13+38462.28","v":139094941.34}]
[null,null,null,"Noviembre",null,141560208.94]
[null,null,null,"Total",null,{"$f":"SUM(F35:F45)","v":1505035681.0099998}]

{"sheet":"Nota 7","index":10,"n_rows":16,"n_cols":6,"rows_kept":16,"cut":false,"hidden":false,"merged":[[2,1,3,5],[4,1,4,5],[7,1,7,6]]}
[]
[null,"Nota 7:"]
[null,"SALIDA DE RECURSOS"]
[]
[null,{"$f":"+'Nota 6'!B5:H5","v":"al 30 de Noviembre de 2018"}]
[]
[]
[null,"Corresponde al traslado de todos los recursos de la cuenta patrimonial “Reserva en Formación” a la cuenta Provisión para Pensiones en Curso de Pago”, por ende todos los recursos generados de los aportes, así como los rendimientos obtenidos por las inversiones se continúan registrando en la Provisión Para Pensiones en Curso de Pago."]
[]
[]
[null,null,null,"Mensual",null,"Acumulado"]
[]
[null,"Aportes ",null,7438465895.7000008,null,75882669053.960007]
[null,"Rendimientos ",null,6653328942,null,34569892649.449997]
[]
[null,"TOTAL",null,{"$f":"SUM(D13:D14)","v":14091794837.700001},null,{"$f":"SUM(F13:F14)","v":110452561703.41}]

{"sheet":"Nota 8","index":11,"n_rows":16,"n_cols":6,"rows_kept":16,"cut":false,"hidden":false,"merged":[[2,1,3,5],[4,1,4,5],[7,1,7,5]]}
[]
[null,"Nota 8:"]
[null,"Pérdida por Fluctuación Cambiaria"]
[]
[null,{"$f":"+'Nota 7'!B5:F5","v":"al 30 de Noviembre de 2018"}]
[]
[]
[null,"Corresponde a la pérdida generada en cuentas corrientes, inversiones y cuentas relacionadas cuando el tipo de cambio para la valuación de los activos en dólares, emitido por el Banco Central de Costa Rica."]
[]
[]
[null,"Cuenta",null,"Mes",null,"Acumulado"]
[null,"Por Cuentas Corrientes",null,8111659.1600000001,null,29121483.52]
[null,"En Inversiones En Valores De Emisores Nacionales $",null,4402734702.6000004,null,8505409021.3299999]
[null,"Por Cuentas Por Cobrar",null,392335.29,null,465057.63]
[null,"Por Productos Por Cobrar Sobre Inversion",null,44150665.310000002,null,82418401.590000004]
[null,"Pérdida Total Generada",null,{"$f":"SUM(D12:D15)","v":4455389362.3600006},null,{"$f":"SUM(F12:F15)","v":8617413964.0699997}]

{"sheet":"Nota 9","index":12,"n_rows":15,"n_cols":6,"rows_kept":15,"cut":false,"hidden":false,"merged":[[3,1,4,5],[5,1,5,5],[8,1,8,5],[10,1,10,5]]}
[]
[null,"Nota 9:"]
[]
[null,"Pérdida por Variaciones en la Unidad de Referencia"]
[]
[null,{"$f":"+'Nota 8'!B5:F5","v":"al 30 de Noviembre de 2018"}]
[]
[]
[null,"Pérdida generada por la variación en la unidad de referencia de las Unidades de Desarrollo (UDES), relativa a los recursos invertidos por el Fondo a través de títulos en UDES (TUDES) que ofrece el Ministerio de Hacienda a largo plazo."]
[]
[null,"Conforme lo establece el manual de cuentas de SUPEN se registra la pérdida contable producto de la disminución en la unidad de referencia en los rubros de valor facial de las inversiones en TUDES, prima amortizada y el descuento recibido."]
[]
[null,"Cuenta",null,"Mes",null,"Acumulado"]
[null,"En valores emitidos por el Gobierno",null,11267936.529999999,null,361373227.91000003]
[null,"Pérdida Total Generada",null,{"$f":"SUM(D14:D14)","v":11267936.529999999},null,{"$f":"SUM(F14:F14)","v":361373227.91000003}]

{"sheet":"Nota 10","index":13,"n_rows":25,"n_cols":6,"rows_kept":25,"cut":false,"hidden":false,"merged":[[21,1,21,5],[20,1,20,5],[23,1,23,5],[24,1,24,5],[2,1,3,5],[4,1,4,5],[7,1,7,5],[18,1,18,5],[17,1,17,5]]}
[]
[null,"Nota 10:"]
[null,"GASTOS GENERALES"]
[]
[null,{"$f":"+'Nota 9'!B6:F6","v":"al 30 de Noviembre de 2018"}]
[]
[]
[null,"Esta cuenta agrupa varias partidas, las cuales se describen a continuación:"]
[]
[null,"GASTOS GENERALES",null,"MENSUAL",null,"ACUMULADO"]
[]
[null,"Servicios Bancarios",null,67618.61,null,740064.9]
[null,"Cotización Seguro De Enfermedad y Maternidad",null,513502524.07999998,null,5519858905.9300003]
[null,"Gastos Diversos",null,153.68,null,713080.03]
[]
[null,"TOTAL DE GASTOS GENERALES",null,{"$f":"SUM(D12:D15)","v":513570296.37},null,{"$f":"SUM(F12:F15)","v":5521312050.8599997}]
[]
[null,"Gastos por servicios bancarios:"]
[null,"Corresponde a gastos por comisiones bancarias cobradas por el Banco Nacional , lo anterior a raíz de conclusión “Convenio Institucional entre el Poder Judicial y la referida Entidad Bancaria”, dichos gatos son del conocimiento de la Dirección Ejecutiva, según oficios DGBI-SML-25-2016, 2232-DE-2016 y 2342-DE-2016."]
[]
[null,"Cotización Seguro de Enfermedad y Maternidad: "]
[null,"Carga social en la que incurre el Fondo como Patrono, con la Caja Costarricense del Seguro Social, por concepto de Enfermedad y Maternidad, correspondiente al 8.75% sobre las jubilaciones y pensiones canceladas."]
[]
[null,"Gastos diversos"]
[null,"Corresponde a diversos ajustes relacionados principalmente con las inversiones y cuentas relacionadas. "]

{"sheet":"Nota 11","index":14,"n_rows":23,"n_cols":8,"rows_kept":23,"cut":false,"hidden":false,"merged":[[2,1,3,7],[4,1,4,7],[7,1,7,7],[26,1,26,7],[27,1,27,7]]}
[]
[null,"Nota 11:"]
[null,"Cuentas Corrientes y de Ahorro"]
[]
[null,{"$f":"+'Nota 10'!B5:F5","v":"al 30 de Noviembre de 2018"}]
[]
[]
[null,"El saldo en cuentas corrientes bancarias que mantiene el Fondo de Jubilaciones en colones y en dólares americanos son los siguientes:"]
[]
[" ","CUENTAS CORRIENTES Y DE AHORRO PROV.  PARA PENSIONES EN CURSO DE PAGO",null,"TOTAL ¢",null,"TIPO DE CAMBIO",null,"TOTAL $ \n"]
[]
[null,"Banco Nacional de C.R. Cta 1234-0",null,169110.37]
[null,"Banco de Costa Rica Cta 229-32-9",null,2144722809.03]
[null,"Banco de Costa Rica Cta 174961-7",null,99000]
[null,"Banco Popular Cta 1019277-0",null,16656642.970000001]
[null,"Banco Nacional de C.R. 2413-8 ",null,0]
[null,"Banco de Costa Rica 349803-4",null,1099.8599999999999]
[null,"Banco de Costa Rica 349824-7",null,42.15]
[null,"Banco de Costa Rica Cta. 112247-9 $",null,617842598.50999999,null,602.23,null,{"$f":"+D19/F19","v":1025924.6442555169}]
[null,"Banco Nacional de C.R. Cta  601227-7 $",null,350708.65,null,{"$f":"F19","v":602.23},null,{"$f":"+D20/F20","v":582.35001577470405}]
[null,"Banco Popular Cta 1914-1 $",null,306923.18,null,{"$f":"F20","v":602.23},null,{"$f":"+D21/F21","v":509.64445477641431}]
[]
[null,"TOTAL EN CUENTAS CORRIENTES Y DE AHORRO",null,{"$f":"SUM(D12:D21)","v":2780148934.7200003},null,null,null,{"$f":"SUM(H19:H21)","v":1027016.6387260681}]

{"sheet":"Nota 12","index":15,"n_rows":28,"n_cols":8,"rows_kept":28,"cut":false,"hidden":false,"merged":[[2,1,3,7],[9,1,9,3],[18,1,18,3],[4,1,4,7],[7,1,7,7]]}
[]
[null,"Nota 12:"]
[null,"Inversiones en Valores de Emisores Nacionales "]
[]
[null,{"$f":"+'Nota 11'!B5:H5","v":"al 30 de Noviembre de 2018"}]
[]
[]
[null,"Dicho rubro resume los diferentes movimientos de inversiones en colones y dólares emitidas por el Gobierno de Costa Rica tales como el Ministerio de Hacienda, Banco Central de Costa Rica, Banco de Costa Rica, el Banco Nacional de Costa Rica, Banco Popular y de Desarrollo Comunal e Instituto Costarricense de Electricidad, considerando el registro de la inversión al costo de adquisición (Valor Facial + Primas – Descuentos). "]
[]
[null,"COLONES"]
[]
[null,"Inv. Valor Facial",null,444913135228.70001]
[null,"Primas ",null,9383774696.9300003]
[null,"Descuentos",null,-392726343.35000002]
[]
[null,"SALDO INVERSIONES EN COLONES ",null,{"$f":"SUM(D12:D14)","v":453904183582.28003}]
[]
[]
[null,"SALDO DÓLARES",null,null,null,"TIPO DE CAMBIO ",null,"SALDO EN COLONES"]
[]
[null,"Inv. Valor Facial",null,69230825.425596058,null,602.23,null,42945957936.260002]
[null,"Primas ",null,70922.127754582238,null,602.23,null,43995123.510000005]
[null,"Descuentos",null,-325247.74125062471,null,602.23,null,-201760931.33000004]
[null,"Títulos de Participación",null,34100221.592539452,null,602.23,null,21153390460.5]
[]
[null,"SALDO INVERSIONES EN DÓLARES (COLONIZADO)",null,{"$f":"SUM(D21:D24)","v":103076721.40463948},null,null,null,{"$f":"SUM(H21:H24)","v":63941582588.940002}]
[]
[null,"TOTAL GENERAL:",null,{"$f":"+D16+H26","v":517845766171.22003}]

{"sheet":"Nota 13","index":16,"n_rows":23,"n_cols":4,"rows_kept":23,"cut":false,"hidden":false,"merged":[[2,1,3,3],[4,1,4,3],[24,4,25,5],[7,1,7,3],[18,1,18,3],[20,1,20,3],[22,1,22,3]]}
[]
[null,"Nota 13:"]
[null,"CUENTAS POR COBRAR"]
[]
[null,{"$f":"+'Nota 12'!B5:H5","v":"al 30 de Noviembre de 2018"}]
[]
[]
[null,"En esta cuenta se registran aquellas partidas que debe recuperar el Fondo y se conforma por los siguientes conceptos:"]
[]
[null,"Cuentas por Cobrar"]
[]
[null,"Títulos vencidos pendientes de cobro",null,6383993.29]
[null,"Impuesto Sobre La Renta Por Cobrar ",null,211627782.43000001]
[null,"Sumas Pend. De cobrar ",null,38301.71]
[]
[null,"Saldo:",null,{"$f":"D12+D13+D14","v":218050077.43000001}]
[]
[]
[null,"1)    Títulos y Cupones de inversión vencidos pendientes de cobro, que en virtud de que el cierre de mes corresponde a un día no hábil, las entidades bancarias realizan el pago de estos el día hábil siguiente, para este mes esta cuenta no presenta saldo."]
[]
[null,"2) Corresponden aquellas sumas que debe recuperar el Régimen por concepto de exención del 8% del impuesto sobre la renta de los títulos valores, que por su situación particular, no es posible cobrarlos inmediatamente con el vencimiento de los cupones"]
[]
[null,"3)  En esta cuenta se registrará las cuentas por cobrar, generadas de la captación de inversiones, por comisiones pagadas de más, intereses moratorios u otros."]

{"sheet":"Nota 14","index":17,"n_rows":24,"n_cols":4,"rows_kept":24,"cut":false,"hidden":false,"merged":[[3,1,4,3],[5,1,5,3],[9,1,9,3],[11,1,11,3]]}
[]
[null,"Nota 14:"]
[]
[null,"Productos por cobrar sobre Inversiones de Emisores Nacionales"]
[]
[null,{"$f":"+'Nota 13'!B5:D5","v":"al 30 de Noviembre de 2018"}]
[]
[null,"La cuenta se conforma por el registro de:"]
[]
[null,"·         La parte proporcional de los intereses devengados por las inversiones con cupones en títulos valores, que fueron adquiridos por el Fondo, acreditándose a la contrapartida de “Intereses Devengados”. "]
[]
[null,"·         Los intereses que se acumulan al costo de las inversiones del Mercado Primario y Secundario, donde se adquieren títulos valores de primera y segunda mano, con cupones de intereses corridos, los cuales se suman a los desembolsos que realiza el Fondo para la adquisición de esos valores, y que al vencimiento del cupón son reembolsados. "]
[]
[null,"Productos por cobrar sobre Inversiones"]
[]
[null,"Sobre Valores Emitidos Por El Banco Central",null,359463140.19999999]
[null,"Sobre Valores Emitidos Por El Gobierno",null,6094508900.8999996]
[null,"Sobre Valor. Emit. otras Ent Pub. no Fininancieras",null,235492501.55000001]
[null,"Sobre Valores Emitidos Por Bancos Comerciales",null,649158689.60000002]
[null,"Sobre Val. Emit. Bcos. Pub. Ley. Especiales",null,116269453.06]
[null,"Sobre Val. Emit. Bcos. Bancos Privados",null,282969326.24000001]
[null,"Dividendos por Cobrar",null,175996597.87]
[]
[null,"Saldo",null,{"$f":"SUM(D16:D23)","v":7913858609.4200001}]

{"sheet":"Nota 15","index":18,"n_rows":30,"n_cols":4,"rows_kept":30,"cut":false,"hidden":false,"merged":[[29,1,29,3],[2,1,3,3],[4,1,4,3],[7,1,7,3],[26,1,26,3],[27,1,27,3]]}
[]
[null,"Nota 15:"]
[null,"Préstamos por Cobrar"]
[]
[null,{"$f":"+'Nota 14'!B6:D6","v":"al 30 de Noviembre de 2018"}]
[]
[]
[null,"Corresponde al saldo del préstamo por la suma de ¢1,000,000,000 concedido a la Asociación Nacional de Empleados Judiciales (ANEJUD) en apego de lo dispuesto en el artículo 238 de la Ley Orgánica del Poder Judicial, como se detalla:"]
[]
[null,"SUMAS GIRADAS A:",null," MONTO "]
[]
[null,"ANEJUD:  Débito No. 2863 de la Cta 174961-7 BCR el 9 de diciembre de 2008  (Autorizado por la Dirección Ejecutiva oficio No.9488-DE-08)",null,166244019.15000001]
[null,"ANEJUD: Débito No. 20806860 de la Cta 1234-0 BNCR el 9 de diciembre de 2008 (Autorizado por la Dirección Ejecutiva oficio No.9488-DE-08)",null,410921974.85000002]
[null,"ANEJUD:  Débito No. 379 de la Cta 229-32-9 BCR el 10 de febrero de 2009  (Autorizado por la Dirección Ejecutiva con oficio No. 1123-DE-2009 ).  El desembolso autorizado por esa Dirección Ejecutiva es por ¢422.834.006 de los cuales y a solicitud de ANEJUD con oficio del 10 de febrero de 2009 a Don Walter Jiménez Sorio, Jefe del Departamento Financiero Contable en su oportunidad, se deduce la primera cuota de intereses cancelada por adelantado de ¢6.876.239.  El total girado con el débito No. 379 es ¢415.957.767. ",null,422834006]
[]
[null,"TOTAL DE LOS DESEMBOLSOS",null,{"$f":"SUM(D12:D14)","v":1000000000}]
[]
[null,"Menos. Amortizaciones",null,995241463.80000043]
[]
[null,"Saldo del préstamo",null,{"$f":"+D16-D18","v":4758536.1999995708}]
[]
[null,"Mas: Intereses por cobrar"]
[]
[null,"TOTAL POR COBRAR",null,{"$f":"+D20+D22","v":4758536.1999995708}]
[]
[]
[null,"El contrato para dicho préstamo se firmó en diciembre 2008 (contrato sin número) del cual ya se giró la totalidad de los recursos a esa entidad."]
[null,"Para los efectos de este crédito, se establecen intereses corrientes conforme se indica en la cuarta cláusula del contrato que dice:"]
[]
[null,"Tipo de interés corriente: Intereses iguales o superiores a los que recibiría el Fondo de Jubilaciones del Poder Judicial por inversiones en títulos valores del sector público, revisable semestralmente, según lo establece el artículo 238 de la Ley Orgánica del Poder Judicial y lo dispuesto por la Corte Plena en sesión celebrada el 15-12-03 artículo XXXIX."]

{"sheet":"Nota 16","index":19,"n_rows":56,"n_cols":10,"rows_kept":56,"cut":false,"hidden":false,"merged":[[34,1,34,9],[35,1,35,9],[37,1,37,9],[38,1,38,9],[2,1,3,9],[4,1,4,9],[7,1,7,9],[31,1,31,9],[32,1,32,9],[39,1,39,9],[40,1,40,9],[42,1,42,9],[44,1,44,9],[47,1,47,9],[48,1,48,9],[50,1,50,9],[51,1,51,9],[53,1,53,9],[55,1,55,9]]}
[]
[null,"Nota 16:"]
[null,"APORTES POR COBRAR"]
[]
[null,{"$f":"+'Nota 15'!B5:D5","v":"al 30 de Noviembre de 2018"}]
[]
[]
[null,"Corresponden a los aporte de los trabajadores, del patrono, del estado y jubilados-Pensionados que se detallan a continuación:"]
[]
[null,"Nota",null,"Sub-nota",null,"APORTES POR COBRAR",null,"Detalle",null,"Total"]
[]
[null,"16.1",null,null,null,"Aporte por cobrar a los trabajadores",null,null,null,{"$f":"SUM(H13:H15)","v":6257541505.4499998}]
[null,null,null,"16.1.1",null,"Aporte Ordinario",null,1421203875.3900001]
[null,null,null,"16.1.2",null,"Aporte Ordinario S .Escolar",null,2331666146.1900001]
[null,null,null,"16.1.3",null,"Aporte Reconocimiento de tiempo servido",null,2504671483.8699999]
[null,"16.2",null,null,null,"Aportes por cobrar al Patrono",null,null,null,{"$f":"SUM(H17:H18)","v":4324422042.3288002}]
[null,null,null,"16.2.1",null,"Aportes Por Cobrar Poder Jud.-Patrono",null,1565672838.6248]
[null,null,null,"16.2.2",null,"Apor. x Cobrar Poder Jud.-Patrono (S.E)",null,2758749203.704]
[null,"16.3",null,null,null,"Aportes por cobrar al Estado",null,null,null,{"$f":"SUM(H20:H21)","v":305485817.03000003}]
[null,null,null,"16.3.1",null,"Aportes Por Cobrar Poder Jud.-Estado",null,63315601.979999997]
[null,null,null,"16.3.2",null,"Apor. x Cobrar Poder Jud.-Estado (S.E)",null,242170215.05000001]
[null,"16.4",null,null,null,"Otros aportes por cobrar",null,null,null,{"$f":"SUM(H23:H26)","v":254375196.42000002}]
[null,null,null,"16.4.1",null,"Sumas canceladas de más a Jubilados y Pensionados",null,148401860.61000001]
[null,null,null,"16.4.2",null,"Aportes Reconocimiento de Tiempo Servido Fuera del Poder Judicial (RTSFPJ)",null,4541101.25]
[null,null,null,"16.4.3",null,"Otros aportes por cobrar entidades deductoras",null,3966709.84]
[null,null,null,"16.4.4",null,"Sumas canceladas de más a Jubilados y Pensionados (Aguinaldo)",null,97465524.719999999]
[]
[{"$nulls":5},"TOTAL ",null,null,null,{"$f":"SUM(J12:J26)","v":11141824561.228802}]
[]
[]
[]
[null,"16.1 Aportes por cobrar a los trabajadores"]
[null,"Este grupo contempla las sumas por cobrar proveniente de la estimación mensual del salario escolar a los servidores activos del Poder Judicial. Adicionalmente, incluye los aportes por cobrar de las obligaciones por reconocimiento de tiempo servido fuera del Poder Judicial aprobado por el Consejo Superior de la Corte Suprema de Justicia, a servidores judiciales activos, para efectos de jubilación."]
[]
[null,"16.2 Aportes por cobrar al Patrono "]
[null,"Se compone de las sumas pendientes de cobrar por aportes que recibe el Fondo de Jubilaciones y Pensiones del Estado en su calidad de patrono."]
[]
[null,"16.3 Aportes por cobrar al Estado "]
[null,"Este grupo lo componen las sumas pendientes de cobrar por aportes al Estado que recibe el Fondo de Jubilaciones y Pensiones. "]
[null,"16.4 Otros aportes por cobrar"]
[null,"16.4 .1 Sumas canceladas de más a Jubilados y Pensionados"]
[]
[null,"• Por fallecimiento: Dineros girados de más a jubilados y pensionados fallecidos, donde la fecha de su defunción no fue conocida oportunamente. Es importante anotar que en estos casos el Macroproceso Financiero Contable realiza como uno de los mecanismos alternativos para la recuperación de las sumas giradas en demasía, una “Acta de autorización de rebajo”, mediante la cual los beneficiarios al Fondo de Socorro Mutuo designados por el jubilado fallecido, autorizan voluntariamente la deducción de ese beneficio, de las sumas pagadas de más por el Fondo de Jubilaciones. Dicha deducción se realiza solo con el consentimiento de los causahabientes, los cuales acceden a honrar las obligaciones del jubilado fallecido. Para los casos en donde el procedimiento no ha resultado factible, se analiza el caso y se eleva a conocimiento de las instancias correspondientes. "]
[]
[null,"• Estudios por sumas canceladas de más a jubilados y pensionados: Además se registran las sumas canceladas de más por conceptos diversos, entre los cuales los más relevantes son los montos pagados de más a jubilados que en determinado momento ejercieron un puesto en el Sector Público percibiendo otro sueldo del Estado, de sus bancos, de sus instituciones, de las municipalidades, de las juntas de educación y de las empresas de economía mixta, a los cuales se les suspendió el beneficio del Fondo de Jubilaciones tardíamente, girándoseles recursos en demasía que no les correspondía, de conformidad con lo que reza el artículo 234 de la Ley Orgánica del Poder Judicial. "]
[]
[]
[null,"16.4.2 Aportes Reconocimiento de Tiempo Servido"]
[null,"Corresponde a las contribuciones por cobrar, como resultado del reconocimiento de tiempo servido fuera del Poder Judicial aprobado por el Consejo Superior de la Corte Suprema de Justicia, a servidores judiciales activos y jubilados o pensionados que asumen la deuda de un ex jubilado, según el artículo 231 de la Ley Orgánica del Poder Judicial."]
[]
[null,"16.4.3 Otros aportes por cobrar a Entidades Deductoras"]
[null,"Corresponde a cuentas por cobrar a las entidades deductoras por conceptos diversos entre los cuales los más relevantes son producto de:  "]
[]
[null,"·         La anulación de pagos por concepto de asignaciones por exclusión de beneficiarios del Fondo (fallecimiento, mayoría de edad, matrimonio o cuando el beneficiario se encuentra laborando para otra Institución del Estado mientras recibía el beneficio de su jubilación por parte de este Fondo)"]
[]
[null,"·         Diferencias en la aplicación de ajustes en los montos de las jubilaciones y pensiones que corresponden a deducciones en planilla que ya han sido giradas a dichas Entidades, cuando el Fondo se entera del suceso."]

{"sheet":"Nota 17","index":20,"n_rows":12,"n_cols":8,"rows_kept":12,"cut":false,"hidden":false,"merged":[[2,1,3,7],[4,1,4,7],[11,1,11,7]]}
[]
[null,"Nota 17:"]
[null,"INTANGIBLES"]
[]
[null,{"$f":"+'Nota 16'!B5:J5","v":"al 30 de Noviembre de 2018"}]
[]
[null,"Detalle",null,"Monto",null,"Amortización",null,"Total"]
[null,"Sistema inversiones \"Internet Systems Development Insyde S.A\"",null,7618670,null,-7618670,null,0]
[]
[]
[null,"Nota:"]
[null,"Corresponde al registro de la compra del Sistema de Inversiones a la empresa Internet Systems Development Insyde S.A. con un valor de $14,750.00, valorado al tipo de cambio de la fecha de adquisición del activo (15 de agosto de 2007) de ¢516.52, para un total de ¢7,618,670. A dicho monto se descuenta la amortización acumulada al cierre del presente mes que asciende a ¢7,618,670 para un activo neto de ¢0.00. La vida útil del sistema en mención es de 5 años y considerando que fue registrado en setiembre del 2007 se encuentra depreciado en su totalidad, no obstante, a la fecha de este informe se encuentra en funcionamiento. \n\nEn el periodo comprendido entre el 15 de julio a 12 de diciembre del 2011 la Dirección de Tecnología de Información realizó mejoras al sistema de Inversiones por la suma de ¢1.673.895. Lo anterior, de acuerdo con la información suministrada por la Dirección de Tecnología de la Información, mediante correo electrónico del 27 de abril del 2017 y oficio 1635-DTI-2017, dicho monto se encuentra registrado actualmente en los registros contables del Poder Judicial por igual suma.\n\nCon oficio 425-SC-2015 de 26 de agosto del 2015, se realizó la consulta a la Superintendencia de Pensiones (SUPEN) sobre la forma de registro contable de la información suministrada por la Dirección de Tecnología de Información, en virtud de que, en el Manual de Cuentas para el Régimen de Capitalización Colectiva emitido por dicha Superintendencia, no se observa alguna cuenta contable para el registro de la reevaluación de activos intangibles.\n\n La SUPEN ante la consulta realizada, indicó lo siguiente:\n\n“[…] conforme lo establecido en las Normas internacionales de Información Financiera (NIIF), se le comunica que no existe forma alguna de atribuir costo a un activo intangible luego del final de su vida útil: aunque esté en operación y generando beneficios, su valor en libros deberá seguir siendo cero…” \n\n\n\n\n"]

{"sheet":"Nota 18","index":21,"n_rows":18,"n_cols":8,"rows_kept":18,"cut":false,"hidden":false,"merged":[[3,2,4,4],[5,2,5,4],[8,2,8,4]]}
[]
[null,null,"Nota 18:"]
[]
[null,null,"Retenciones A Pensionados"]
[]
[null,null,{"$f":"+'Nota 17'!B5","v":"al 30 de Noviembre de 2018"}]
[]
[]
[null,null,"Comprende las retenciones mensuales aplicadas en la planilla de jubilados y pensionados judiciales correspondientes a entidades deductoras, que realiza el Fondo a sus distintos beneficiarios, las cuales en el caso de la retención del impuesto sobre la renta y la cuota obrera por enfermedad y maternidad son honradas hasta el mes siguiente de su aplicación."]
[]
[]
[null,null,"RETENCIONES A JUBILADOS Y PENSIONADOS",null,"TOTAL"]
[]
[null,null,"Impuesto Sobre La Renta",null,428742677.16000003,null,null," "]
[null,null,"Caja Costarricense Seguro Social",null,293430371.48000002]
[null,null,"Otras retenciones ",null,0]
[]
[null,null,"TOTAL DE RETENCIONES A JUBILADOS Y PENSIONADOS",null,{"$f":"SUM(E14:E17)","v":722173048.6400001}]

{"sheet":"Nota 19","index":22,"n_rows":19,"n_cols":4,"rows_kept":19,"cut":false,"hidden":false,"merged":[[3,1,4,3],[5,1,5,3],[7,1,7,5]]}
[]
[null,"Nota 19:"]
[]
[null,"Obligaciones Por Liquidar Empleados y Exempleados"]
[]
[null,{"$f":"+'Nota 18'!C6","v":"al 30 de Noviembre de 2018"}]
[]
[null,"En esta cuenta se registran sumas sujetas a devolución por parte del Fondo de Jubilaciones y Pensiones que corresponden a pagos recibidos de más en la cancelación de obligaciones por cobrar por reconocimiento de tiempo servido fuera del Poder Judicial, derivados por el traslado de cuotas que realiza la Caja Costarricense del Seguro Social u otro régimen de pensiones hacia el Fondo de Jubilaciones, las cuales deben abonarse a las cuentas de los servidores judiciales, sin embargo, algunos de esos traslados ingresan cuando ya el servidor ha cancelado la deuda, por lo que se genera un pasivo a favor de éste. "]
[]
[]
[null,"OBLIGACIONES POR LIQUIDAR EMPL. Y EXEMPL.",null,"TOTAL"]
[]
[null,"VCLO",null,64093.81]
[null,"GGMJ",null,312632.7]
[null,"JCVA",null,7228.48]
[null,"LFBV",null,51606.41]
[null,"CASS",null,133044.37]
[]
[null,"OBLIGACIONES POR LIQUIDAR EMPL. Y EXEMPL.",null,{"$f":"SUM(D13:D18)","v":568605.77}]

{"sheet":"Nota 20","index":23,"n_rows":29,"n_cols":4,"rows_kept":29,"cut":false,"hidden":false,"merged":[[3,1,4,3],[5,1,5,3],[28,1,36,3],[8,1,8,3]]}
[]
[null,"Nota 20:"]
[]
[null,"Obligaciones Transitorias por Liquidar"]
[]
[null,{"$f":"+'Nota 19'!B6:D6","v":"al 30 de Noviembre de 2018"}]
[]
[]
[null,"En esta se registran sumas transitorias que deben liquidarse oportunamente y se compone de los siguientes rubros:"]
[]
[null,"Obligaciones Transitorias por Liquidar",null,"Saldo"]
[]
[null,"Benef. no retirados y por fallecimiento",null,59008492.950000003]
[null,"Sumas en transito por aclarar",null,2766747]
[null,"Instituciones Financieras -Banco de Costa Rica",null,49693.56]
[null,"Institucione Financieras Banco Popular ¢",null,498197.34]
[null,"*Intituciones Gubernamentales-Poder Judicial-¢",null,0]
[null,"Instituciones Gubernamentales-Caja Costarricense Seguro Social",null,3796451.36]
[null,"Anejud",null,308179.7]
[null,"Otros-Errores Bancarios",null,16562159.07]
[null,"Transitoria de deducción",null,1194442.3600000001]
[null,"Aporte Junta Administradora FJP",null,598934126.74000001]
[null,"*Aporte Junta Administradora FJP - Jubilados y Pensionados",null,182882504.06]
[null,"Instituciones Financieras-Banco Popular $",null,232250.73]
[]
[null,"Total Obligaciones Transitorias por Liquidar",null,{"$f":"SUM(D13:D24)","v":866233244.87000012}]
[]
[]
[null,"* Nota 1: Mediante la publicación de la Ley 9544, se aplica la reforma al capítulo IV, art 239, referente a la comisión por gastos administrativos, la cua indica:      \" Surgirá de deducir un cinco por mil de los sueldos de que devengen los servidores judicial, así como de las jubilaciones y las pensiones a cargo del Fondo. Con estos recursos se pagarán las dietas de los miembros de la Junta Administradora, los salarios de su personal y, en general, sus gastos administrativos...\", dicho aporte dio inicio a partir del 22/05/2018."]

{"sheet":"Nota 21","index":24,"n_rows":12,"n_cols":6,"rows_kept":12,"cut":false,"hidden":false,"merged":[[3,1,4,5],[5,1,5,5],[8,1,8,5]]}
[]
[null,"Nota 21:"]
[]
[null,"Cotización Seguro De Enfermedad y Maternidad"]
[]
[null,{"$f":"+'Nota 20'!B6:D6","v":"al 30 de Noviembre de 2018"}]
[]
[]
[null,"Este pasivo se conforma por la cuota patronal del 8.75% que el Fondo de Jubilaciones y Pensiones debe pagar mensualmente a la Caja Costarricense de Seguro Social (C.C.S.S.), según lo estipulado en el artículo 62 del Reglamento del Seguro Salud."]
[]
[null,"Entidad",null,"Porcentaje",null,"Monto"]
[null,"Caja Costarricense del Seguro Social",null,8.7499999999999994E-2,null,513509114.70999998]

{"sheet":"Nota 22","index":25,"n_rows":16,"n_cols":10,"rows_kept":16,"cut":false,"hidden":false,"merged":[[2,1,3,9],[4,1,4,9],[20,1,30,9],[6,1,6,9]]}
[]
[null,"Nota 22:"]
[null,"PROVISIONES PARA PENSIONES EN CURSO DE PAGO"]
[]
[null,{"$f":"+'Nota 21'!B6:F6","v":"al 30 de Noviembre de 2018"}]
[]
[null,"En esta cuenta se registra la totalidad de los recursos acumulados  generados de las actividades del Fondo de Jubilaciones y Pensiones provenientes en su mayoría de los aportes recibidos de las cuotas obrero patronales-estatales, así como de los intereses netos ganados en inversiones, con el fin de atender las obligaciones que se deriven de los beneficios establecidos reglamentariamente para los jubilados y pensionados actuales así como de los nuevos jubilados y pensionados. "]
[]
[]
[null,"Nota",null,"Sub-nota",null,"APORTES POR COBRAR",null,"Detalle",null,"Total"]
[]
[null,"22.1",null,null,null,"Recursos recibido de reservas en formación",null,null,null,1043286404156.58]
[null,"22.2",null,null,null,"(Menos) Pago plan de beneficios",null,null,null,506904056892.28003]
[null,null,null,"22.2.1",null,"Traslados a otros regímenes",null,547740447.04999995]
[]
[{"$nulls":5},"TOTAL ",null,null,null,{"$f":"+J12-J13","v":536382347264.29993}]

{"sheet":"Nota 23","index":26,"n_rows":12,"n_cols":4,"rows_kept":12,"cut":false,"hidden":false,"merged":[[3,1,4,3],[5,1,5,3],[8,1,8,3]]}
[]
[null,"Nota 23:"]
[]
[null,"CUENTAS DE ORDEN DEUDORAS Y ACREDORAS"]
[]
[null,{"$f":"+'Nota 22'!B5:J5","v":"al 30 de Noviembre de 2018"}]
[]
[]
[null,"En esta cuenta se registran los saldos de las cuentas por cobrar por concepto de reconocimiento de tiempo servido en otras dependencias o instituciones públicas, de aquellos servidores en condición de propietarios que renunciaron al Poder Judicial. "]
[]
[null,"Concepto",null,"Monto"]
[null,"Cuentas por cobrar por reconocimiento de tiempo servido en otras dependencias o instituciones públicas, de aquellos servidores en condición de propietarios que renunciaron al Poder Judicial. ",null,291806472.83999997]